[Event "*** SCC Grand Prix: Titled Tuesday Blitz"]
[Site "Chess.com"]
[Date "2020.06.02"]
[Round "4"]
[White "Terao90"]
[Black "Gyapiking"]
[Result "1-0"]
[WhiteElo "2295"]
[BlackElo "2507"]
[TimeControl "180+1"]
[EndTime "10:40:30 PDT"]
[Termination "Terao90 won by resignation"]

1. e4 {[%clk 0:02:53.8]} 1... Nc6 {[%clk 0:02:57.6]} 2. d4 {[%clk 0:02:39.8]}
2... d5 {[%clk 0:02:56.7]} 3. e5 {[%clk 0:02:32.6]} 3... Bf5 {[%clk 0:02:55.9]}
4. c3 {[%clk 0:02:28.7]} 4... e6 {[%clk 0:02:55.1]} 5. Bd3 {[%clk 0:02:26.6]}
5... Nge7 {[%clk 0:02:54]} 6. Nf3 {[%clk 0:02:25.6]} 6... Qd7 {[%clk 0:02:49.6]}
7. b4 {[%clk 0:02:23.2]} 7... f6 {[%clk 0:02:48.3]} 8. exf6 {[%clk 0:02:18.6]}
8... gxf6 {[%clk 0:02:47.6]} 9. O-O {[%clk 0:02:17.2]} 9... O-O-O {[%clk
0:02:47.4]} 10. a4 {[%clk 0:02:16]} 10... Rg8 {[%clk 0:02:46.8]} 11. Re1 {[%clk
0:02:09.8]} 11... Bxd3 {[%clk 0:02:19]} 12. Qxd3 {[%clk 0:02:10.7]} 12... Nf5
{[%clk 0:02:19.2]} 13. a5 {[%clk 0:02:06.9]} 13... Bd6 {[%clk 0:02:14.6]} 14. b5
{[%clk 0:02:02.8]} 14... Nce7 {[%clk 0:02:13.1]} 15. b6 {[%clk 0:02:02.1]} 15...
a6 {[%clk 0:02:12.7]} 16. bxc7 {[%clk 0:01:59.1]} 16... Bxc7 {[%clk 0:02:12.4]}
17. Nbd2 {[%clk 0:01:35.2]} 17... Rg6 {[%clk 0:02:10.5]} 18. g3 {[%clk
0:01:29.4]} 18... Rdg8 {[%clk 0:02:09.7]} 19. Nf1 {[%clk 0:01:22.8]} 19... h5
{[%clk 0:02:07.9]} 20. Qe2 {[%clk 0:01:20.4]} 20... Nd6 {[%clk 0:01:25.4]} 21.
Qxe6 {[%clk 0:01:17.8]} 21... Ne4 {[%clk 0:01:24.9]} 22. Qxd7+ {[%clk
0:01:16.3]} 22... Kxd7 {[%clk 0:01:25]} 23. c4 {[%clk 0:01:13.9]} 23... f5
{[%clk 0:01:14.3]} 24. cxd5 {[%clk 0:01:12.7]} 24... Nxd5 {[%clk 0:01:14.4]} 25.
Ne3 {[%clk 0:01:07.2]} 25... Nxe3 {[%clk 0:01:08.8]} 26. Bxe3 {[%clk 0:01:06.7]}
26... f4 {[%clk 0:01:04.6]} 27. Bxf4 {[%clk 0:01:06.6]} 27... Bxf4 {[%clk
0:00:51.3]} 28. Rxe4 {[%clk 0:01:06.7]} 28... Bc7 {[%clk 0:00:51.1]} 29. Ne5+
{[%clk 0:01:03]} 29... Bxe5 {[%clk 0:00:50.3]} 30. dxe5 {[%clk 0:01:03.9]} 30...
Rc6 {[%clk 0:00:50.1]} 31. Rb1 {[%clk 0:01:00.3]} 31... Kc7 {[%clk 0:00:49.7]}
32. e6 {[%clk 0:00:56.3]} 32... Re8 {[%clk 0:00:49.4]} 33. e7 {[%clk 0:00:46.5]}
33... Rc5 {[%clk 0:00:48]} 34. Reb4 {[%clk 0:00:45.1]} 34... Rxe7 {[%clk
0:00:45.6]} 35. Rxb7+ {[%clk 0:00:44.5]} 35... Kd8 {[%clk 0:00:44.9]} 36. Rb8+
{[%clk 0:00:14.6]} 36... Kd7 {[%clk 0:00:44.8]} 37. R1b7+ {[%clk 0:00:12.1]}
37... Ke6 {[%clk 0:00:33.3]} 38. Rb6+ {[%clk 0:00:11.9]} 38... Kf5 {[%clk
0:00:33.4]} 39. Rxa6 {[%clk 0:00:11.8]} 39... h4 {[%clk 0:00:31.7]} 40. Kg2
{[%clk 0:00:11.3]} 40... Rh7 {[%clk 0:00:27.6]} 41. Rf8+ {[%clk 0:00:09.1]}
41... Ke4 {[%clk 0:00:26]} 42. Re6+ {[%clk 0:00:08.1]} 42... Kd4 {[%clk
0:00:24.9]} 43. Re3 {[%clk 0:00:09]} 43... h3+ {[%clk 0:00:24.2]} 44. Kf3 {[%clk
0:00:08]} 44... Rxa5 {[%clk 0:00:23]} 45. Rf4+ {[%clk 0:00:08.9]} 45... Kc5
{[%clk 0:00:21.7]} 46. Rf5+ {[%clk 0:00:09.1]} 46... Kb4 {[%clk 0:00:21.3]} 47.
Rxa5 {[%clk 0:00:09.3]} 47... Kxa5 {[%clk 0:00:21.3]} 48. Rb3 {[%clk 0:00:09.5]}
48... Ka4 {[%clk 0:00:21.1]} 49. Rb8 {[%clk 0:00:08.9]} 49... Rf7+ {[%clk
0:00:20.5]} 50. Kg4 {[%clk 0:00:07.7]} 50... Rxf2 {[%clk 0:00:20.1]} 51. Kxh3
{[%clk 0:00:08.2]} 51... Rf7 {[%clk 0:00:19.6]} 52. g4 {[%clk 0:00:08.3]} 52...
Rh7+ {[%clk 0:00:19.8]} 53. Kg3 {[%clk 0:00:08.4]} 53... Rc7 {[%clk 0:00:19.7]}
54. h4 {[%clk 0:00:08.5]} 54... Rc3+ {[%clk 0:00:19.8]} 55. Kf4 {[%clk
0:00:08.7]} 55... Rc4+ {[%clk 0:00:20.3]} 56. Kg5 {[%clk 0:00:08.7]} 56... Rc5+
{[%clk 0:00:20.7]} 57. Kh6 {[%clk 0:00:07.8]} 57... Rc6+ {[%clk 0:00:20.9]} 58.
Kh5 {[%clk 0:00:07.5]} 58... Rc5+ {[%clk 0:00:20.6]} 59. g5 {[%clk 0:00:07.7]}
59... Rc8 {[%clk 0:00:19.7]} 60. Rxc8 {[%clk 0:00:06.6]} 1-0

[Event "*** SCC Grand Prix: Titled Tuesday Blitz"]
[Site "Chess.com"]
[Date "2020.06.02"]
[Round "4"]
[White "konradrutkowski"]
[Black "talman67"]
[Result "1-0"]
[WhiteElo "2350"]
[BlackElo "2548"]
[TimeControl "180+1"]
[EndTime "10:40:30 PDT"]
[Termination "konradrutkowski won by resignation"]

1. e4 {[%clk 0:03:00.9]} 1... e5 {[%clk 0:02:59.5]} 2. Nf3 {[%clk 0:03:00.9]}
2... Nc6 {[%clk 0:02:59.9]} 3. Bb5 {[%clk 0:03:00.2]} 3... a6 {[%clk 0:02:59.8]}
4. Ba4 {[%clk 0:03:00.3]} 4... Nf6 {[%clk 0:03:00]} 5. O-O {[%clk 0:02:59.1]}
5... Nxe4 {[%clk 0:03:00.5]} 6. d4 {[%clk 0:02:55.3]} 6... b5 {[%clk 0:03:00.7]}
7. Bb3 {[%clk 0:02:54.9]} 7... d5 {[%clk 0:03:01.5]} 8. dxe5 {[%clk 0:02:54.9]}
8... Be6 {[%clk 0:03:02.1]} 9. Qe2 {[%clk 0:02:54.6]} 9... Nc5 {[%clk
0:03:01.3]} 10. Rd1 {[%clk 0:02:52.2]} 10... Nxb3 {[%clk 0:03:01.8]} 11. axb3
{[%clk 0:02:51.7]} 11... Be7 {[%clk 0:03:02.2]} 12. c4 {[%clk 0:02:49.5]} 12...
b4 {[%clk 0:03:01.6]} 13. cxd5 {[%clk 0:02:35.2]} 13... Bxd5 {[%clk 0:03:02.5]}
14. Rxa6 {[%clk 0:02:27.8]} 14... Rxa6 {[%clk 0:02:24.6]} 15. Qxa6 {[%clk
0:02:26.9]} 15... O-O {[%clk 0:02:25.2]} 16. Qb5 {[%clk 0:02:13.8]} 16... Bc4
{[%clk 0:02:13]} 17. Rxd8 {[%clk 0:02:08.6]} 17... Bxb5 {[%clk 0:02:13.4]} 18.
Rxf8+ {[%clk 0:01:53]} 18... Kxf8 {[%clk 0:02:14.3]} 19. Be3 {[%clk 0:01:44.9]}
19... Be2 {[%clk 0:01:50.2]} 20. Nbd2 {[%clk 0:01:44.1]} 20... Bd1 {[%clk
0:01:50.2]} 21. Kf1 {[%clk 0:01:36.4]} 21... Na5 {[%clk 0:01:50.5]} 22. Nd4
{[%clk 0:01:27.5]} 22... c5 {[%clk 0:01:49.1]} 23. Nf5 {[%clk 0:01:27]} 23...
Nxb3 {[%clk 0:01:10.7]} 24. Nxb3 {[%clk 0:01:25.4]} 24... Bxb3 {[%clk
0:01:11.6]} 25. Nxe7 {[%clk 0:01:25.6]} 25... Kxe7 {[%clk 0:01:12.5]} 26. Bxc5+
{[%clk 0:01:25.3]} 26... Ke6 {[%clk 0:01:11.7]} 27. Bxb4 {[%clk 0:01:19.7]}
27... Kxe5 {[%clk 0:00:51.4]} 28. Bc3+ {[%clk 0:01:19.7]} 28... Ke4 {[%clk
0:00:51.2]} 29. Bxg7 {[%clk 0:01:18.5]} 29... Kd3 {[%clk 0:00:44.4]} 30. f3
{[%clk 0:01:10.8]} 30... Ke3 {[%clk 0:00:41.9]} 31. Bh6+ {[%clk 0:01:10.5]}
31... Kd3 {[%clk 0:00:42.3]} 32. Kf2 {[%clk 0:01:10.1]} 32... Kd4 {[%clk
0:00:42.5]} 33. Bg7+ {[%clk 0:01:09.2]} 33... Kd3 {[%clk 0:00:39]} 34. Kg3
{[%clk 0:01:08.5]} 34... Ke2 {[%clk 0:00:38.5]} 35. Bd4 {[%clk 0:00:34.8]} 35...
Kf1 {[%clk 0:00:35.4]} 36. h4 {[%clk 0:00:34.1]} 36... h5 {[%clk 0:00:31]} 37.
Kh3 {[%clk 0:00:25.8]} 37... Be6+ {[%clk 0:00:29.4]} 38. g4 {[%clk 0:00:24.6]}
38... Ke2 {[%clk 0:00:19.7]} 39. Kg3 {[%clk 0:00:24.1]} 39... Bd5 {[%clk
0:00:13.9]} 40. gxh5 {[%clk 0:00:08.3]} 40... Bxf3 {[%clk 0:00:13.9]} 41. h6
{[%clk 0:00:08]} 41... Be4 {[%clk 0:00:14.5]} 42. Kf4 {[%clk 0:00:06.3]} 42...
Kd3 {[%clk 0:00:15.3]} 43. Bc3 {[%clk 0:00:05]} 43... Bh7 {[%clk 0:00:06]} 44.
Kg5 {[%clk 0:00:05.2]} 44... Ke4 {[%clk 0:00:05.7]} 45. Kf6 {[%clk 0:00:05.4]}
45... Kf4 {[%clk 0:00:05.3]} 46. Kg7 {[%clk 0:00:05.6]} 46... Be4 {[%clk
0:00:04.3]} 47. h7 {[%clk 0:00:05.5]} 47... Bxh7 {[%clk 0:00:04.6]} 48. Kxh7
{[%clk 0:00:06.4]} 48... Kg4 {[%clk 0:00:05.5]} 49. Bf6 {[%clk 0:00:05.7]} 49...
Kf5 {[%clk 0:00:05.4]} 50. Kg7 {[%clk 0:00:06]} 50... Ke6 {[%clk 0:00:05.4]} 51.
h5 {[%clk 0:00:06.1]} 1-0

[Event "*** SCC Grand Prix: Titled Tuesday Blitz"]
[Site "Chess.com"]
[Date "2020.06.02"]
[Round "4"]
[White "abhidabhi"]
[Black "Shtembuliak"]
[Result "0-1"]
[WhiteElo "2716"]
[BlackElo "2888"]
[TimeControl "180+1"]
[EndTime "10:40:32 PDT"]
[Termination "Shtembuliak won by resignation"]

1. e4 {[%clk 0:03:00.9]} 1... g6 {[%clk 0:03:00.1]} 2. d4 {[%clk 0:03:00.8]}
2... Bg7 {[%clk 0:03:00.5]} 3. Nc3 {[%clk 0:03:01.2]} 3... d6 {[%clk 0:03:01]}
4. Nf3 {[%clk 0:03:01.5]} 4... Nf6 {[%clk 0:03:00.1]} 5. Be2 {[%clk 0:02:59.3]}
5... O-O {[%clk 0:03:00]} 6. O-O {[%clk 0:02:59.3]} 6... a6 {[%clk 0:03:00.6]}
7. a4 {[%clk 0:02:55.7]} 7... Nc6 {[%clk 0:02:59.5]} 8. h3 {[%clk 0:02:50.9]}
8... e6 {[%clk 0:02:53.5]} 9. Be3 {[%clk 0:02:47.9]} 9... b6 {[%clk 0:02:53.7]}
10. Re1 {[%clk 0:02:43]} 10... Bb7 {[%clk 0:02:54]} 11. Qd2 {[%clk 0:02:38.6]}
11... Ne7 {[%clk 0:02:54]} 12. Bd3 {[%clk 0:02:34.6]} 12... c5 {[%clk
0:02:53.9]} 13. Bh6 {[%clk 0:02:33.2]} 13... cxd4 {[%clk 0:02:48.2]} 14. Nxd4
{[%clk 0:02:33.2]} 14... Qc7 {[%clk 0:02:46.2]} 15. Bxg7 {[%clk 0:02:30.5]}
15... Kxg7 {[%clk 0:02:47.1]} 16. Kh1 {[%clk 0:02:20]} 16... Rfd8 {[%clk
0:02:33.6]} 17. Nb3 {[%clk 0:02:18.2]} 17... Nc6 {[%clk 0:01:44.5]} 18. Qe2
{[%clk 0:02:18.4]} 18... Ne5 {[%clk 0:01:32.4]} 19. Rad1 {[%clk 0:02:11.8]}
19... d5 {[%clk 0:01:22.4]} 20. exd5 {[%clk 0:01:57.9]} 20... Nxd3 {[%clk
0:01:22.4]} 21. Rxd3 {[%clk 0:01:50.7]} 21... Nxd5 {[%clk 0:01:22.6]} 22. Nxd5
{[%clk 0:01:37.9]} 22... Rxd5 {[%clk 0:01:23.5]} 23. Rxd5 {[%clk 0:01:28.8]}
23... Bxd5 {[%clk 0:01:24.4]} 24. Nd4 {[%clk 0:01:28.4]} 24... Qf4 {[%clk
0:01:09.3]} 25. c3 {[%clk 0:01:12.7]} 25... h5 {[%clk 0:01:08.6]} 26. b3 {[%clk
0:00:58.7]} 26... Rc8 {[%clk 0:01:02.7]} 27. Qe3 {[%clk 0:00:51.1]} 27... Qxe3
{[%clk 0:00:45.8]} 28. Rxe3 {[%clk 0:00:47.3]} 28... Kf6 {[%clk 0:00:45.8]} 29.
c4 {[%clk 0:00:45]} 29... Bb7 {[%clk 0:00:44.7]} 30. Nf3 {[%clk 0:00:40.5]}
30... Rd8 {[%clk 0:00:43.9]} 31. Ne5 {[%clk 0:00:36.1]} 31... Rd2 {[%clk
0:00:39.7]} 32. Kg1 {[%clk 0:00:35.9]} 32... g5 {[%clk 0:00:28.2]} 33. Rd3
{[%clk 0:00:24.9]} 33... Rxd3 {[%clk 0:00:25.1]} 34. Nxd3 {[%clk 0:00:25]} 34...
Be4 {[%clk 0:00:25.4]} 35. Nb4 {[%clk 0:00:12.2]} 35... a5 {[%clk 0:00:25.4]}
36. Na6 {[%clk 0:00:12]} 36... Bb7 {[%clk 0:00:16.4]} 37. Nc7 {[%clk 0:00:11.6]}
37... Ke5 {[%clk 0:00:16.1]} 38. Nb5 {[%clk 0:00:06]} 38... Bc6 {[%clk
0:00:15.7]} 39. Kf1 {[%clk 0:00:05]} 39... h4 {[%clk 0:00:10.6]} 40. f3 {[%clk
0:00:05.3]} 40... Bxb5 {[%clk 0:00:08.8]} 41. axb5 {[%clk 0:00:05.3]} 41... Kd4
{[%clk 0:00:09.4]} 42. Ke2 {[%clk 0:00:05.6]} 42... e5 {[%clk 0:00:08.2]} 43.
Kd2 {[%clk 0:00:05.5]} 43... a4 {[%clk 0:00:04.8]} 44. bxa4 {[%clk 0:00:05.1]}
44... Kxc4 {[%clk 0:00:05.4]} 45. a5 {[%clk 0:00:04.5]} 45... Kxb5 {[%clk
0:00:05.7]} 46. axb6 {[%clk 0:00:05]} 46... Kxb6 {[%clk 0:00:06.3]} 47. Kd3
{[%clk 0:00:05.4]} 47... f5 {[%clk 0:00:06.9]} 48. Kc4 {[%clk 0:00:05.3]} 48...
Kc6 {[%clk 0:00:07.3]} 49. Kc3 {[%clk 0:00:05.4]} 49... Kc5 {[%clk 0:00:07.7]}
50. Kd3 {[%clk 0:00:05.7]} 50... Kb4 {[%clk 0:00:08.1]} 51. Ke3 {[%clk
0:00:05.7]} 51... Kc3 {[%clk 0:00:08.3]} 52. Ke2 {[%clk 0:00:04.9]} 52... Kd4
{[%clk 0:00:08.6]} 53. Kd2 {[%clk 0:00:05.5]} 53... e4 {[%clk 0:00:09]} 54. fxe4
{[%clk 0:00:03]} 54... fxe4 {[%clk 0:00:09.9]} 0-1

[Event "*** SCC Grand Prix: Titled Tuesday Blitz"]
[Site "Chess.com"]
[Date "2020.06.02"]
[Round "4"]
[White "WIDBIFS"]
[Black "TengisChess"]
[Result "1-0"]
[WhiteElo "2719"]
[BlackElo "2507"]
[TimeControl "180+1"]
[EndTime "10:40:32 PDT"]
[Termination "WIDBIFS won by checkmate"]

1. d4 {[%clk 0:03:00.9]} 1... Nf6 {[%clk 0:02:59.3]} 2. Nf3 {[%clk 0:03:01.2]}
2... g6 {[%clk 0:03:00]} 3. g3 {[%clk 0:03:00.6]} 3... Bg7 {[%clk 0:03:00.6]} 4.
Bg2 {[%clk 0:03:01.2]} 4... O-O {[%clk 0:03:01.5]} 5. O-O {[%clk 0:03:01.8]}
5... c5 {[%clk 0:03:01.4]} 6. c4 {[%clk 0:03:01]} 6... d6 {[%clk 0:02:59.7]} 7.
Nc3 {[%clk 0:02:59.5]} 7... Bg4 {[%clk 0:02:57]} 8. dxc5 {[%clk 0:02:57.7]} 8...
dxc5 {[%clk 0:02:56.7]} 9. Qxd8 {[%clk 0:02:50.1]} 9... Rxd8 {[%clk 0:02:57.6]}
10. Ne5 {[%clk 0:02:50.8]} 10... Bc8 {[%clk 0:02:54.2]} 11. Be3 {[%clk 0:02:47]}
11... Nfd7 {[%clk 0:02:32.4]} 12. Nd3 {[%clk 0:02:34.9]} 12... Nb6 {[%clk
0:02:27.4]} 13. Nxc5 {[%clk 0:02:17]} 13... Nc6 {[%clk 0:02:22.1]} 14. Rad1
{[%clk 0:02:01.3]} 14... Rf8 {[%clk 0:02:21.5]} 15. Bxc6 {[%clk 0:00:41]} 15...
bxc6 {[%clk 0:02:19.2]} 16. Bd4 {[%clk 0:00:32.4]} 16... Bh3 {[%clk 0:02:07.1]}
17. Rfe1 {[%clk 0:00:32]} 17... e5 {[%clk 0:02:01.1]} 18. Be3 {[%clk 0:00:31.2]}
18... Nxc4 {[%clk 0:02:02]} 19. Bc1 {[%clk 0:00:31.3]} 19... Rfd8 {[%clk
0:01:50.7]} 20. b3 {[%clk 0:00:29.4]} 20... Nb6 {[%clk 0:01:47.5]} 21. f3 {[%clk
0:00:28.1]} 21... Nd5 {[%clk 0:01:35.8]} 22. N3a4 {[%clk 0:00:27.3]} 22... Nb4
{[%clk 0:01:28.1]} 23. Rd2 {[%clk 0:00:16.9]} 23... a5 {[%clk 0:01:13.4]} 24.
Red1 {[%clk 0:00:16.2]} 24... Rxd2 {[%clk 0:01:01.4]} 25. Rxd2 {[%clk
0:00:15.9]} 25... Bh6 {[%clk 0:00:54]} 26. Rd1 {[%clk 0:00:16.2]} 26... Bxc1
{[%clk 0:00:54]} 27. Rxc1 {[%clk 0:00:17.1]} 27... Nxa2 {[%clk 0:00:54.6]} 28.
Rd1 {[%clk 0:00:17.8]} 28... Rb8 {[%clk 0:00:38.5]} 29. Kf2 {[%clk 0:00:17.8]}
29... h5 {[%clk 0:00:35.2]} 30. g4 {[%clk 0:00:12.4]} 30... hxg4 {[%clk
0:00:34.1]} 31. Kg3 {[%clk 0:00:13.3]} 31... f5 {[%clk 0:00:32]} 32. Rd6 {[%clk
0:00:10.4]} 32... Kf7 {[%clk 0:00:30.2]} 33. Rxc6 {[%clk 0:00:08.4]} 33... Nc1
{[%clk 0:00:26.1]} 34. Rc7+ {[%clk 0:00:07.4]} 34... Kg8 {[%clk 0:00:25.7]} 35.
Nd7 {[%clk 0:00:06.9]} 35... Nxe2+ {[%clk 0:00:24.8]} 36. Kf2 {[%clk 0:00:07.3]}
36... Nf4 {[%clk 0:00:25.1]} 37. Nxb8 {[%clk 0:00:07.2]} 37... gxf3 {[%clk
0:00:21.9]} 38. Kxf3 {[%clk 0:00:07.2]} 38... Nd5 {[%clk 0:00:22.1]} 39. Rd7
{[%clk 0:00:05.8]} 39... e4+ {[%clk 0:00:22]} 40. Kg3 {[%clk 0:00:06]} 40... Nf6
{[%clk 0:00:19]} 41. Kxh3 {[%clk 0:00:05.8]} 41... Nxd7 {[%clk 0:00:18.7]} 42.
Nxd7 {[%clk 0:00:06.7]} 42... Kf7 {[%clk 0:00:18.8]} 43. Ndc5 {[%clk 0:00:06]}
43... Ke7 {[%clk 0:00:17.9]} 44. Kg3 {[%clk 0:00:06.4]} 44... Kd6 {[%clk
0:00:17]} 45. Nb7+ {[%clk 0:00:06.9]} 45... Ke5 {[%clk 0:00:16.8]} 46. Nxa5
{[%clk 0:00:07.8]} 46... f4+ {[%clk 0:00:17.3]} 47. Kf2 {[%clk 0:00:07.9]} 47...
g5 {[%clk 0:00:17]} 48. Nc4+ {[%clk 0:00:08]} 48... Kd4 {[%clk 0:00:16.9]} 49.
Nab2 {[%clk 0:00:08.3]} 49... g4 {[%clk 0:00:17.1]} 50. Nd1 {[%clk 0:00:08.4]}
50... Kd3 {[%clk 0:00:16.3]} 51. Nce3 {[%clk 0:00:07.5]} 51... g3+ {[%clk
0:00:15.2]} 52. hxg3 {[%clk 0:00:07.6]} 52... fxg3+ {[%clk 0:00:15.1]} 53. Kxg3
{[%clk 0:00:08.5]} 53... Kd4 {[%clk 0:00:15.2]} 54. Kf4 {[%clk 0:00:08.5]} 54...
Kd3 {[%clk 0:00:15.7]} 55. Ke5 {[%clk 0:00:08]} 55... Kd2 {[%clk 0:00:15.7]} 56.
b4 {[%clk 0:00:08.6]} 56... Kd3 {[%clk 0:00:16.3]} 57. b5 {[%clk 0:00:09.5]}
57... Kd2 {[%clk 0:00:15.4]} 58. b6 {[%clk 0:00:10.4]} 58... Kd3 {[%clk
0:00:15.8]} 59. b7 {[%clk 0:00:11.3]} 59... Kd2 {[%clk 0:00:16.4]} 60. b8=Q
{[%clk 0:00:12.2]} 60... Kc1 {[%clk 0:00:16.7]} 61. Qb2# {[%clk 0:00:12.2]} 1-0

[Event "*** SCC Grand Prix: Titled Tuesday Blitz"]
[Site "Chess.com"]
[Date "2020.06.02"]
[Round "4"]
[White "kleopl"]
[Black "Ali_rastbod"]
[Result "0-1"]
[WhiteElo "2462"]
[BlackElo "2653"]
[TimeControl "180+1"]
[EndTime "10:40:32 PDT"]
[Termination "Ali_rastbod won by checkmate"]

1. c4 {[%clk 0:03:00.9]} 1... e5 {[%clk 0:02:53.6]} 2. Nc3 {[%clk 0:03:00.5]}
2... Nc6 {[%clk 0:02:51.3]} 3. Nf3 {[%clk 0:03:00.5]} 3... g6 {[%clk 0:02:39.6]}
4. d4 {[%clk 0:02:51.4]} 4... exd4 {[%clk 0:02:40.5]} 5. Nxd4 {[%clk 0:02:51.5]}
5... Bg7 {[%clk 0:02:40.4]} 6. Nxc6 {[%clk 0:02:51.4]} 6... bxc6 {[%clk
0:02:41.3]} 7. e4 {[%clk 0:02:47]} 7... Ne7 {[%clk 0:02:41.8]} 8. Be2 {[%clk
0:02:43.7]} 8... O-O {[%clk 0:02:42.2]} 9. O-O {[%clk 0:02:43.6]} 9... f5 {[%clk
0:02:42.1]} 10. Qc2 {[%clk 0:02:20.2]} 10... c5 {[%clk 0:02:39.9]} 11. Bd3
{[%clk 0:02:13.3]} 11... f4 {[%clk 0:02:37.1]} 12. Be2 {[%clk 0:02:09.1]} 12...
Nc6 {[%clk 0:02:35]} 13. Bf3 {[%clk 0:01:59.8]} 13... d6 {[%clk 0:02:32.6]} 14.
Ne2 {[%clk 0:01:50.5]} 14... Be5 {[%clk 0:02:11.7]} 15. Rb1 {[%clk 0:01:45]}
15... Qh4 {[%clk 0:02:10.2]} 16. g3 {[%clk 0:01:33.7]} 16... Qe7 {[%clk
0:01:35.7]} 17. Bxf4 {[%clk 0:01:26.1]} 17... Bxf4 {[%clk 0:01:27.6]} 18. gxf4
{[%clk 0:01:25.1]} 18... g5 {[%clk 0:00:58]} 19. f5 {[%clk 0:01:16.7]} 19... Ne5
{[%clk 0:00:49.1]} 20. Bg2 {[%clk 0:01:15.7]} 20... g4 {[%clk 0:00:48.8]} 21. f4
{[%clk 0:01:08.6]} 21... gxf3 {[%clk 0:00:48.6]} 22. Bxf3 {[%clk 0:01:08.1]}
22... Bb7 {[%clk 0:00:49.3]} 23. Bg2 {[%clk 0:01:03.1]} 23... Qg5 {[%clk
0:00:46.3]} 24. b3 {[%clk 0:00:44.4]} 24... Kh8 {[%clk 0:00:45.3]} 25. Qc1
{[%clk 0:00:39.8]} 25... Qg7 {[%clk 0:00:37.8]} 26. Ng3 {[%clk 0:00:37.4]} 26...
Rg8 {[%clk 0:00:35.3]} 27. Qf4 {[%clk 0:00:34.2]} 27... Qf6 {[%clk 0:00:34.4]}
28. Kh1 {[%clk 0:00:32]} 28... Rg4 {[%clk 0:00:34.3]} 29. Qf2 {[%clk 0:00:30.4]}
29... Rag8 {[%clk 0:00:32.8]} 30. Rbd1 {[%clk 0:00:29.9]} 30... R8g5 {[%clk
0:00:26]} 31. Bf3 {[%clk 0:00:26.2]} 31... Rh4 {[%clk 0:00:14.9]} 32. Rfe1
{[%clk 0:00:20.2]} 32... Qh6 {[%clk 0:00:12.3]} 33. Bg2 {[%clk 0:00:16.2]} 33...
Ng4 {[%clk 0:00:07.8]} 34. Qd2 {[%clk 0:00:13.1]} 34... Rxh2+ {[%clk 0:00:06.2]}
35. Kg1 {[%clk 0:00:13.5]} 35... Ne5 {[%clk 0:00:06.1]} 36. Qf4 {[%clk
0:00:12.3]} 36... Rh4 {[%clk 0:00:03.7]} 37. Qf2 {[%clk 0:00:11.4]} 37... Rhg4
{[%clk 0:00:04.3]} 38. Re3 {[%clk 0:00:08.6]} 38... Qg7 {[%clk 0:00:04.8]} 39.
Kh2 {[%clk 0:00:06.6]} 39... Rh4+ {[%clk 0:00:04]} 40. Kg1 {[%clk 0:00:06.1]}
40... Ng4 {[%clk 0:00:04.9]} 41. Qf4 {[%clk 0:00:06.1]} 41... Nxe3 {[%clk
0:00:04.8]} 42. Qxh4 {[%clk 0:00:06.1]} 42... Nxd1 {[%clk 0:00:05]} 43. Kh2
{[%clk 0:00:05.2]} 43... Ne3 {[%clk 0:00:03.1]} 44. Nh5 {[%clk 0:00:05]} 44...
Ng4+ {[%clk 0:00:04]} 45. Kh1 {[%clk 0:00:04.5]} 45... Qa1+ {[%clk 0:00:04]} 46.
Bf1 {[%clk 0:00:03.1]} 46... Qxf1# {[%clk 0:00:04.4]} 0-1

[Event "*** SCC Grand Prix: Titled Tuesday Blitz"]
[Site "Chess.com"]
[Date "2020.06.02"]
[Round "4"]
[White "BIG_Pirate"]
[Black "rase"]
[Result "0-1"]
[WhiteElo "2359"]
[BlackElo "2590"]
[TimeControl "180+1"]
[EndTime "10:40:32 PDT"]
[Termination "rase won on time"]

1. Nf3 {[%clk 0:03:00.9]} 1... c5 {[%clk 0:02:59.7]} 2. c4 {[%clk 0:03:00.9]}
2... Nc6 {[%clk 0:02:59.1]} 3. Nc3 {[%clk 0:03:01.4]} 3... g6 {[%clk 0:02:56.4]}
4. g3 {[%clk 0:03:01.3]} 4... Bg7 {[%clk 0:02:56.2]} 5. Bg2 {[%clk 0:03:01.9]}
5... e5 {[%clk 0:02:56]} 6. O-O {[%clk 0:03:01.5]} 6... Nge7 {[%clk 0:02:55.8]}
7. a3 {[%clk 0:03:01.2]} 7... a5 {[%clk 0:02:53.2]} 8. Ne1 {[%clk 0:02:58.2]}
8... O-O {[%clk 0:02:50.5]} 9. Nc2 {[%clk 0:02:58.2]} 9... d6 {[%clk 0:02:50.1]}
10. Rb1 {[%clk 0:02:57.3]} 10... Be6 {[%clk 0:02:49.3]} 11. Ne3 {[%clk
0:02:57.3]} 11... Qd7 {[%clk 0:02:47]} 12. Re1 {[%clk 0:02:56.4]} 12... f5
{[%clk 0:02:46.4]} 13. d3 {[%clk 0:02:56.2]} 13... f4 {[%clk 0:02:45.6]} 14.
Ned5 {[%clk 0:02:55.8]} 14... Rad8 {[%clk 0:02:20.4]} 15. b4 {[%clk 0:02:52.3]}
15... axb4 {[%clk 0:02:19.9]} 16. axb4 {[%clk 0:02:53.2]} 16... cxb4 {[%clk
0:02:14.4]} 17. Nxb4 {[%clk 0:02:52.4]} 17... Bh3 {[%clk 0:02:13.6]} 18. Bh1
{[%clk 0:02:43.1]} 18... Nd4 {[%clk 0:02:04.9]} 19. Nbd5 {[%clk 0:02:29.7]}
19... Kh8 {[%clk 0:01:54.5]} 20. Nxe7 {[%clk 0:02:22.2]} 20... Qxe7 {[%clk
0:01:53.8]} 21. Rxb7 {[%clk 0:02:22.7]} 21... Rd7 {[%clk 0:01:18.5]} 22. Rxd7
{[%clk 0:01:53.2]} 22... Qxd7 {[%clk 0:01:18.3]} 23. Ne4 {[%clk 0:01:52.9]}
23... h6 {[%clk 0:01:06.2]} 24. Bb2 {[%clk 0:01:50.7]} 24... Qa7 {[%clk
0:00:56.5]} 25. Bxd4 {[%clk 0:01:25.3]} 25... Qxd4 {[%clk 0:00:54.9]} 26. Qa1
{[%clk 0:01:25.7]} 26... Qb6 {[%clk 0:00:44.3]} 27. Rb1 {[%clk 0:01:24]} 27...
Qc7 {[%clk 0:00:39.7]} 28. Qa6 {[%clk 0:01:20]} 28... d5 {[%clk 0:00:34.6]} 29.
cxd5 {[%clk 0:01:05.3]} 29... Qc2 {[%clk 0:00:32.3]} 30. Re1 {[%clk 0:01:05.6]}
30... Rb8 {[%clk 0:00:19.3]} 31. Bg2 {[%clk 0:00:48.7]} 31... Bf5 {[%clk
0:00:11.7]} 32. d6 {[%clk 0:00:27.9]} 32... Rb1 {[%clk 0:00:10.5]} 33. Qa5
{[%clk 0:00:20.8]} 33... Rc1 {[%clk 0:00:04.2]} 34. d7 {[%clk 0:00:18.1]} 34...
Bxd7 {[%clk 0:00:03.8]} 35. Kf1 {[%clk 0:00:08.7]} 35... Bf5 {[%clk 0:00:03.1]}
36. Rxc1 {[%clk 0:00:03.1]} 36... Qxc1+ {[%clk 0:00:03]} 37. Qe1 {[%clk
0:00:04]} 37... Qc7 {[%clk 0:00:03.5]} 38. Kg1 {[%clk 0:00:04]} 38... fxg3
{[%clk 0:00:03.2]} 39. hxg3 {[%clk 0:00:03.8]} 39... Kh7 {[%clk 0:00:03.1]} 40.
Qb1 {[%clk 0:00:03.9]} 40... Bxe4 {[%clk 0:00:02.6]} 41. Bxe4 {[%clk 0:00:02.8]}
41... h5 {[%clk 0:00:02.4]} 42. Kg2 {[%clk 0:00:03.2]} 42... Qf7 {[%clk
0:00:02.3]} 43. Qb6 {[%clk 0:00:02.2]} 43... Qf6 {[%clk 0:00:02]} 0-1